bitfinex/quotes_BTCUSD_20250525
["timestamp","ask_amount","ask_price","bid_price","bid_amount"]
[1748166021236,0.00215057,106510.0,106500.0,1.41357198]
[1748166021452,0.00215057,106510.0,106500.0,1.21831113]
[1748166021659,0.00215057,106510.0,106500.0,1.36815113]
[1748166021879,0.05215057,106510.0,106500.0,1.15687757]
[1748166022116,0.05215057,106510.0,106500.0,0.93860557]
[1748166023108,0.05215057,106510.0,106500.0,1.27860557]
[1748166023649,0.00215057,106510.0,106500.0,1.27860557]
[1748166023853,0.05215057,106510.0,106500.0,1.27860557]
[1748166024382,0.14169613,106510.0,106500.0,1.02723657]
[1748166024552,0.17259613,106510.0,106500.0,1.17707657]
[1748166025339,0.17159613,106510.0,106500.0,1.17307657]
[1748166025519,0.17259613,106510.0,106500.0,1.17307657]
[1748166025720,0.53359613,106510.0,106500.0,0.86365557]
[1748166025927,0.53459613,106510.0,106500.0,1.12157557]
[1748166026903,0.51889613,106510.0,106500.0,0.78781557]
[1748166027074,0.50369613,106510.0,106500.0,1.12157557]
[1748166027322,0.41415057,106510.0,106500.0,1.12157557]
[1748166027523,0.46415057,106510.0,106500.0,1.12157557]
[1748166028068,0.46415057,106510.0,106500.0,0.78781557]
[1748166028275,0.46415057,106510.0,106500.0,1.12157557]
[1748166028492,0.55369613,106510.0,106500.0,0.78781557]
[1748166028699,0.55369613,106510.0,106500.0,1.12157557]
[1748166028892,0.56889613,106510.0,106500.0,0.78781557]
[1748166029098,0.56889613,106510.0,106500.0,1.12157557]
[1748166029778,0.53459613,106510.0,106500.0,1.01325557]
[1748166030820,0.53459613,106510.0,106500.0,0.67973557]
[1748166031025,0.53459613,106510.0,106500.0,1.01325557]
[1748166031230,0.53459613,106510.0,106500.0,1.13071857]
[1748166031434,0.53459613,106510.0,106500.0,1.11371857]
[1748166031637,0.53459613,106510.0,106500.0,0.67973557]
[1748166031845,0.53459613,106510.0,106500.0,0.86341557]
[1748166032047,0.53459613,106510.0,106500.0,0.67973557]
[1748166032264,0.53459613,106510.0,106500.0,1.01325557]
[1748166032691,0.53459613,106510.0,106500.0,1.14059257]
[1748166032905,0.53459613,106510.0,106500.0,1.11633457]
[1748166033944,0.53459613,106510.0,106500.0,1.09461706]
[1748166034118,0.51889613,106510.0,106500.0,1.09461706]
[1748166035991,0.53519613,106510.0,106500.0,1.09461706]
[1748166036752,0.13210268,106510.0,106500.0,1.09461706]
[1748166037545,0.13210268,106510.0,106500.0,0.65801806]
[1748166037773,0.13210268,106510.0,106500.0,1.11729806]
[1748166037915,0.13210268,106510.0,106500.0,0.99157806]
[1748166038568,0.13210268,106510.0,106500.0,1.40082506]
[1748166038775,0.13210268,106510.0,106500.0,0.65801806]
[1748166038977,0.01105712,106510.0,106500.0,1.34771906]
[1748166040427,0.00215057,106510.0,106500.0,1.34771906]
[1748166040666,0.00215057,106510.0,106500.0,1.01415906]
[1748166040875,0.00215057,106510.0,106500.0,1.34771906]
[1748166043441,0.02827511,106510.0,106500.0,1.34771906]
[1748166044430,0.02827511,106510.0,106500.0,1.77849678]
[1748166044639,0.00215057,106510.0,106500.0,1.77849678]
[1748166045400,0.00215057,106510.0,106500.0,1.44493678]
[1748166045601,0.00215057,106510.0,106500.0,1.77849678]
[1748166045804,0.00215057,106510.0,106500.0,1.42953678]
[1748166046007,0.00215057,106510.0,106500.0,1.76309678]
[1748166046587,0.00215057,106510.0,106500.0,1.77959678]
[1748166046948,0.00215057,106510.0,106500.0,1.89918319]
[1748166047949,0.00015057,106510.0,106500.0,1.89918319]
[1748166048149,0.00115057,106510.0,106500.0,1.89918319]
[1748166048349,0.462,106530.0,106500.0,1.89918319]
[1748166048350,0.412,106530.0,106520.0,0.032]
[1748166048515,0.03286078,106540.0,106530.0,0.0165]
[1748166048880,0.03286078,106540.0,106530.0,5.73065028]
[1748166049784,0.10797462,106550.0,106530.0,5.73065028]
[1748166049994,0.10797462,106550.0,106540.0,5.175427]
[1748166050627,0.10797462,106550.0,106540.0,4.075547]
[1748166050837,0.22932018,106550.0,106540.0,0.528005]
[1748166051045,0.22932018,106550.0,106540.0,0.527599]
[1748166051247,0.23047176,106550.0,106540.0,0.868599]
[1748166051490,0.23047176,106550.0,106540.0,0.67452]
[1748166051693,0.23047176,106550.0,106540.0,0.967884]
[1748166052098,0.23047176,106550.0,106540.0,0.895075]
[1748166052305,0.23047176,106550.0,106540.0,0.78548]
[1748166052523,0.23247176,106550.0,106540.0,0.78648]
[1748166052906,0.19961098,106550.0,106540.0,0.78648]
[1748166053046,0.12449714,106550.0,106540.0,0.78648]
[1748166053488,0.12449714,106550.0,106540.0,0.80952604]
[1748166054370,0.01975158,106550.0,106540.0,0.80952604]
[1748166055022,0.05315158,106550.0,106540.0,0.80952604]
[1748166057399,0.05315158,106550.0,106540.0,0.65968604]
[1748166057620,0.08405158,106550.0,106540.0,0.80952604]
[1748166057843,0.54738002,106550.0,106540.0,0.002]
[1748166058049,0.53897486,106550.0,106540.0,0.18564]
[1748166058260,1.24881571,106550.0,106540.0,0.002]
[1748166058466,1.24881571,106550.0,106540.0,0.33548]
[1748166058679,1.24681571,106550.0,106540.0,0.33448]
[1748166059103,1.24981571,106550.0,106540.0,0.18564]
[1748166059310,1.24981571,106550.0,106530.0,0.001]
[1748166059311,0.01454085,106540.0,106530.0,0.001]
[1748166059512,0.55270878,106540.0,106530.0,0.001]
[1748166059716,0.0809,106510.0,106500.0,0.33716]
[1748166059894,0.0799,106510.0,106500.0,0.95582]
[1748166060099,0.0309,106510.0,106500.0,1.003502]
[1748166060309,0.0309,106510.0,106500.0,1.014302]
[1748166060543,0.0299,106510.0,106500.0,1.003502]
[1748166060748,0.0299,106510.0,106500.0,1.343502]
[1748166060954,0.0299,106510.0,106500.0,1.34400522]
[1748166061375,0.0309,106510.0,106500.0,1.34500522]
[1748166062217,0.0319,106510.0,106500.0,1.34600522]
[1748166062429,0.002,106510.0,106500.0,1.76138294]
[1748166062666,0.051,106510.0,106500.0,1.76138294]
[1748166062878,0.051,106510.0,106500.0,1.36908506]
[1748166065604,0.002,106510.0,106500.0,1.45863062]
[1748166065823,0.002,106510.0,106500.0,1.90600834]
[1748166066242,0.002,106510.0,106500.0,1.92054919]
[1748166066453,0.002,106510.0,106500.0,1.90600834]
[1748166068336,0.002,106510.0,106500.0,1.92054919]
[1748166070222,0.002,106510.0,106500.0,1.93054919]
[1748166070442,0.07511384,106560.0,106530.0,0.43177772]
[1748166070688,0.07511384,106560.0,106540.0,4.82012472]
[1748166070906,0.12411384,106560.0,106550.0,4.075547]
[1748166071124,0.0817,106580.0,106550.0,4.58047028]
[1748166071336,0.049,106580.0,106560.0,4.97788472]
[1748166071563,0.049,106580.0,106570.0,4.254867]
[1748166071802,0.14051384,106590.0,106570.0,4.254867]
[1748166072017,0.00015166,106580.0,106570.0,0.19356258]
[1748166072233,0.04915166,106580.0,106570.0,4.11281441]
[1748166072438,0.08285166,106580.0,106570.0,3.94419741]
[1748166072637,0.08385166,106580.0,106570.0,3.94419741]
[1748166072865,0.08385166,106580.0,106570.0,3.92995483]
[1748166073309,0.08585166,106580.0,106570.0,4.23411283]
[1748166073527,0.08485166,106580.0,106570.0,4.23411283]
[1748166073942,0.06845166,106580.0,106570.0,4.23511283]
[1748166074373,0.06845166,106580.0,106570.0,4.23411283]
[1748166074576,0.06845166,106580.0,106570.0,4.23511283]
[1748166074751,0.07145166,106580.0,106570.0,4.23511283]
[1748166075212,0.12839722,106580.0,106570.0,0.002]
[1748166075438,0.12839722,106580.0,106570.0,0.33904]
[1748166075662,0.14528272,106580.0,106570.0,0.33904]
[1748166075864,0.56066044,106580.0,106570.0,0.66816]
[1748166076071,0.55831579,106580.0,106570.0,0.66816]
[1748166076485,0.55531579,106580.0,106570.0,0.66716]
[1748166076955,0.12739722,106580.0,106570.0,0.66716]
[1748166077164,0.12974187,106580.0,106570.0,0.66716]
[1748166077372,0.13239722,106580.0,106570.0,1.326236]
[1748166077782,0.04285166,106580.0,106570.0,1.326236]
[1748166078002,0.02645166,106580.0,106570.0,1.326236]
[1748166078221,0.07545166,106580.0,106570.0,1.326236]
[1748166078426,0.05915166,106580.0,106570.0,1.326236]
[1748166080040,0.05915166,106580.0,106570.0,1.666236]
[1748166080977,0.01015166,106580.0,106570.0,2.17115928]
[1748166081389,0.01015166,106580.0,106570.0,2.18635928]
[1748166081765,0.0163,106600.0,106570.0,2.18635928]
[1748166081766,0.049,106600.0,106580.0,0.34]
[1748166081971,0.049,106610.0,106600.0,0.34]
[1748166082168,0.049,106610.0,106600.0,4.594827]
[1748166082782,0.0314,106630.0,106600.0,4.594827]
[1748166082997,0.016,106630.0,106620.0,0.34]
[1748166083198,1.18241384,106640.0,106620.0,0.34]
[1748166083199,0.4274,106640.0,106620.0,1.295778]
[1748166083406,0.477,106640.0,106630.0,4.01092831]
[1748166083630,0.461,106640.0,106630.0,3.460177]
[1748166084243,0.4611516,106640.0,106630.0,3.460177]
[1748166084655,0.4121516,106640.0,106630.0,3.460177]
[1748166085115,0.4121516,106640.0,106630.0,3.48335643]
[1748166085116,0.0001516,106640.0,106630.0,3.48335643]
[1748166085901,0.0021516,106640.0,106630.0,3.48335643]
[1748166086531,0.0051516,106640.0,106630.0,3.48335643]
[1748166087035,0.0031516,106640.0,106630.0,3.48335643]
[1748166087237,0.0031516,106640.0,106630.0,3.57290199]
[1748166087439,0.0031516,106640.0,106630.0,4.2776544]
[1748166088343,0.0031516,106640.0,106630.0,3.9485744]
[1748166088549,0.0521516,106640.0,106630.0,3.51235343]
[1748166088753,0.0491516,106640.0,106630.0,3.51135343]
[1748166088957,0.0491516,106640.0,106630.0,3.51235343]
[1748166089365,0.0491516,106640.0,106630.0,3.51435343]
[1748166089585,0.0491516,106640.0,106630.0,3.51135343]
[1748166089586,0.0001516,106640.0,106630.0,3.51135343]
[1748166089788,0.0011516,106640.0,106630.0,4.18702884]
[1748166089937,0.0011516,106640.0,106630.0,4.26859497]
[1748166090141,0.0011516,106640.0,106630.0,4.29903582]
[1748166091548,0.0001516,106640.0,106630.0,4.29903582]
[1748166091972,0.0001516,106640.0,106630.0,4.30403582]
[1748166092965,0.0001516,106640.0,106630.0,3.26826041]
[1748166093322,0.0001516,106640.0,106630.0,3.58127956]
[1748166093506,0.0001516,106640.0,106630.0,3.25371956]
[1748166093710,0.0001516,106640.0,106630.0,3.58127956]
[1748166094039,0.0001516,106640.0,106630.0,3.25371956]
[1748166094171,0.0001516,106640.0,106630.0,3.24127956]
[1748166094385,0.0001516,106640.0,106630.0,3.164174]
[1748166094605,0.0164516,106640.0,106630.0,3.463657]
[1748166094783,0.0322516,106640.0,106630.0,3.463657]
[1748166094986,0.0322516,106640.0,106630.0,3.123657]
[1748166095190,0.0322516,106640.0,106630.0,3.311977]
[1748166095384,0.0322516,106640.0,106630.0,0.66448]
[1748166095385,0.12179716,106640.0,106630.0,0.66448]
[1748166095591,0.20025565,106640.0,106630.0,0.66448]
[1748166095954,0.197911,106640.0,106630.0,0.66448]
[1748166096174,0.197911,106640.0,106630.0,0.5148]
[1748166096290,0.196911,106640.0,106630.0,0.66448]
[1748166096502,0.196911,106640.0,106630.0,1.00448]
[1748166096713,0.198911,106640.0,106630.0,1.00448]
[1748166097137,0.12579716,106640.0,106630.0,1.00448]
[1748166097343,0.12814181,106640.0,106630.0,1.00448]
[1748166098615,0.0694516,106640.0,106630.0,1.00448]
[1748166098815,0.0531516,106640.0,106630.0,1.00448]
[1748166099032,0.0531516,106640.0,106630.0,5.080027]
[1748166100418,0.0531516,106640.0,106630.0,4.57149561]
[1748166101584,0.0041516,106640.0,106630.0,4.72117561]
[1748166103070,0.0041516,106640.0,106630.0,4.81072117]
[1748166103422,0.0041516,106640.0,106630.0,4.84386617]
[1748166103824,0.0041516,106640.0,106630.0,4.87430702]
[1748166105169,0.0001516,106640.0,106630.0,4.87430702]
[1748166105353,0.0011516,106640.0,106630.0,4.89350693]
[1748166105554,0.0011516,106640.0,106630.0,4.9134696]
[1748166105751,0.0011516,106640.0,106630.0,4.84276702]
[1748166105918,0.0001516,106640.0,106630.0,4.85836702]
[1748166106116,0.0001516,106640.0,106630.0,4.85936702]
[1748166106407,0.0001516,106640.0,106630.0,4.87726702]
[1748166107140,0.0001516,106640.0,106630.0,4.88726702]
[1748166107341,0.0001516,106640.0,106630.0,4.90646693]
[1748166107525,0.0001516,106640.0,106630.0,5.24318693]
[1748166107728,0.0001516,106640.0,106630.0,5.22398702]
[1748166108338,0.07511384,106680.0,106650.0,0.04604085]
[1748166108553,0.07526536,106680.0,106660.0,4.83261256]
[1748166108756,0.07526536,106680.0,106670.0,4.415547]
[1748166108910,0.12426536,106680.0,106670.0,4.415547]
[1748166109500,0.00015152,106680.0,106670.0,4.52069256]
[1748166110107,0.00315152,106680.0,106670.0,4.52069256]
[1748166110477,0.00315152,106680.0,106670.0,4.50509256]
[1748166110886,0.00015152,106680.0,106670.0,4.52069256]
[1748166111088,0.00015152,106680.0,106670.0,4.53523341]
[1748166112100,0.00915152,106680.0,106670.0,4.53523341]
[1748166112709,0.00415152,106680.0,106670.0,4.53523341]
[1748166112858,0.00715152,106680.0,106670.0,4.53523341]
[1748166113426,0.00715152,106680.0,106670.0,4.55113341]
[1748166113659,0.00715152,106680.0,106670.0,4.56113341]
[1748166114107,0.00715152,106680.0,106670.0,4.56213341]
[1748166114563,0.00715152,106680.0,106670.0,4.56113341]
[1748166114788,0.00410292,106680.0,106670.0,4.56213341]
[1748166114993,0.0798,106720.0,106690.0,0.01454085]
[1748166115224,0.03095149,106720.0,106710.0,0.34]
[1748166115451,0.12049705,106720.0,106710.0,0.34]
[1748166115649,0.1228417,106720.0,106710.0,0.34]
[1748166116225,0.1248417,106720.0,106710.0,0.34]
[1748166116447,0.1298417,106720.0,106710.0,0.34]
[1748166116632,0.1278417,106720.0,106710.0,0.34]
[1748166117055,0.1328417,106720.0,106710.0,0.34]
[1748166117725,0.1328417,106720.0,106710.0,0.66736]
[1748166118138,0.13049705,106720.0,106710.0,0.66736]
[1748166118718,0.13049705,106720.0,106710.0,0.981965]
[1748166119052,0.13049705,106720.0,106710.0,0.937925]
[1748166119582,0.13049705,106720.0,106710.0,0.66736]
[1748166120473,0.13049705,106720.0,106710.0,1.560175]
[1748166120720,0.13049705,106720.0,106710.0,0.783495]
[1748166120958,0.13049705,106720.0,106710.0,0.32736]
[1748166121343,0.13049705,106720.0,106710.0,0.428406]
[1748166122967,0.13049705,106720.0,106710.0,0.279276]
[1748166123189,0.13049705,106720.0,106710.0,0.32736]
[1748166124556,0.13049705,106720.0,106710.0,0.428876]
[1748166126129,0.13049705,106720.0,106710.0,0.442901]
[1748166126336,0.13049705,106720.0,106710.0,0.32736]
[1748166126577,0.13049705,106720.0,106710.0,0.428876]
[1748166126723,0.13049705,106720.0,106710.0,0.32736]
[1748166127253,0.13049705,106720.0,106710.0,0.428876]
[1748166127627,0.13049705,106720.0,106710.0,0.32736]
[1748166128187,0.13049705,106720.0,106710.0,0.438347]
[1748166129108,0.13049705,106720.0,106710.0,0.32736]
[1748166129512,0.13049705,106720.0,106710.0,0.441936]
[1748166130579,0.13049705,106720.0,106710.0,0.32736]
[1748166130782,0.13049705,106720.0,106710.0,0.17776]
[1748166130985,0.13049705,106720.0,106710.0,0.32736]
[1748166131216,0.13049705,106720.0,106710.0,0.17776]
[1748166131396,0.13049705,106720.0,106710.0,0.32736]
[1748166131613,0.0306,106710.0,106700.0,0.33664]
[1748166131818,0.12249021,106710.0,106700.0,0.664]
[1748166132226,0.13139791,106710.0,106700.0,0.664]
[1748166132861,0.14593876,106710.0,106700.0,0.664]
[1748166133062,0.15293876,106710.0,106700.0,0.664]
[1748166133665,0.71590608,106710.0,106700.0,0.5144]
[1748166133873,0.71356143,106710.0,106700.0,0.664]
[1748166134301,0.71356143,106710.0,106700.0,0.5144]
[1748166134537,0.70956143,106710.0,106700.0,0.664]
[1748166134747,0.71827216,106710.0,106700.0,0.664]
[1748166134905,0.72227216,106710.0,106700.0,0.664]
[1748166135085,0.73038382,106710.0,106700.0,0.664]
[1748166135688,0.73138382,106710.0,106700.0,0.664]
[1748166136014,0.1684165,106710.0,106700.0,0.664]
[1748166136250,0.17076115,106710.0,106700.0,0.664]
[1748166136471,0.16205042,106710.0,106700.0,0.664]
[1748166136913,0.4439,106690.0,106670.0,0.02032009]
[1748166137087,0.412,106680.0,106670.0,0.02032009]
[1748166137341,0.412,106680.0,106670.0,4.377144]
[1748166137528,0.412,106680.0,106670.0,4.727908]
[1748166138146,0.412,106680.0,106670.0,4.867479]
[1748166138643,0.412,106680.0,106670.0,4.863479]
[1748166139167,0.413,106680.0,106670.0,4.724899]
[1748166139405,0.413,106680.0,106670.0,4.588899]
[1748166139615,0.413,106680.0,106670.0,4.304899]
[1748166139826,0.413,106680.0,106670.0,2.773145]
[1748166140032,0.414,106680.0,106670.0,3.117145]
[1748166140273,0.414,106680.0,106670.0,2.35719036]
[1748166140470,0.4444,106680.0,106670.0,2.04597036]
[1748166140676,0.4444,106680.0,106670.0,2.19557036]
[1748166140893,0.18998097,106680.0,106670.0,1.171269]
[1748166141103,0.015,106640.0,106630.0,0.14964]
[1748166141348,0.08954556,106640.0,106630.0,0.3274]
[1748166141564,0.08954556,106640.0,106630.0,0.32790322]
[1748166141565,0.09189021,106640.0,106630.0,0.32790322]
[1748166141769,0.12229021,106640.0,106630.0,0.32790322]
[1748166142206,0.12129021,106640.0,106630.0,0.32790322]
[1748166142955,0.13017486,106640.0,106630.0,0.32790322]
[1748166143367,0.14471571,106640.0,106630.0,0.32790322]
[1748166143565,0.14437106,106640.0,106630.0,0.32790322]
[1748166143770,0.14671571,106640.0,106630.0,0.32790322]
[1748166143957,0.13783106,106640.0,106630.0,0.32790322]
[1748166144369,0.14083106,106640.0,106630.0,0.32890322]
[1748166144589,0.14083106,106640.0,106630.0,0.17926322]
[1748166146100,0.13883106,106640.0,106630.0,0.17926322]
[1748166146439,0.14968551,106640.0,106630.0,0.17926322]
[1748166146644,0.15568551,106640.0,106630.0,0.18026322]
[1748166147048,0.15568551,106640.0,106630.0,0.00250322]
[1748166147232,0.15568551,106640.0,106630.0,0.18034322]
[1748166148332,0.20568551,106640.0,106630.0,0.18034322]
[1748166148535,0.20334086,106640.0,106630.0,0.18034322]
[1748166149369,0.04664085,106620.0,106610.0,0.48632]
[1748166149580,0.69915373,106620.0,106610.0,0.66416]
[1748166149711,0.69915373,106620.0,106610.0,0.51448]
[1748166150943,0.70215373,106620.0,106610.0,0.51548]
[1748166151683,0.57296732,106630.0,106620.0,1.29784627]
[1748166151842,0.66251288,106630.0,106620.0,1.29784627]
[1748166152603,0.08954556,106630.0,106620.0,1.44756627]
[1748166153011,0.09854556,106630.0,106620.0,1.44956627]
[1748166154817,1.20584556,106630.0,106620.0,1.83345527]
[1748166155017,0.009,106630.0,106620.0,2.01005527]
[1748166155251,0.009,106630.0,106620.0,2.02605527]
[1748166156019,0.004,106630.0,106620.0,1.62516627]
[1748166156220,0.00050465,106640.0,106620.0,1.62416627]
[1748166156434,0.001,106630.0,106620.0,1.62516627]
[1748166156639,0.004,106630.0,106620.0,1.62616627]
[1748166157025,0.09254556,106630.0,106620.0,1.62516627]
[1748166157229,0.09489021,106630.0,106620.0,1.62516627]
[1748166157521,0.09489021,106630.0,106620.0,1.63984627]
[1748166157773,0.09489021,106630.0,106620.0,1.96616627]
[1748166157947,0.09254556,106630.0,106620.0,1.63984627]
[1748166158110,0.09254556,106630.0,106620.0,1.96616627]
[1748166158563,0.09254556,106630.0,106620.0,1.62516627]
[1748166158738,0.10814556,106630.0,106620.0,1.47544627]
[1748166158917,0.12704556,106630.0,106620.0,1.62616627]
[1748166159356,0.12939021,106630.0,106620.0,1.62616627]
[1748166159557,0.09789021,106630.0,106620.0,1.62616627]
[1748166166489,0.09789021,106630.0,106620.0,1.47644627]
[1748166166679,0.09789021,106630.0,106620.0,1.62616627]
[1748166167092,0.10676752,106630.0,106620.0,1.62616627]
[1748166169129,0.10676752,106630.0,106620.0,1.47644627]
[1748166169343,0.13956752,106630.0,106620.0,1.62616627]
[1748166169989,0.15067918,106630.0,106620.0,1.62616627]
[1748166171253,0.15067918,106630.0,106620.0,1.6042307]
[1748166172272,0.15067918,106630.0,106620.0,1.4545107]
[1748166172605,0.15067918,106630.0,106620.0,1.6042307]
[1748166175441,0.17681311,106630.0,106620.0,1.6042307]
[1748166178328,0.18053886,106630.0,106620.0,1.6042307]
[1748166178988,0.14773886,106630.0,106620.0,1.6042307]
[1748166179204,0.12160493,106630.0,106620.0,1.6042307]
[1748166179440,0.10676752,106630.0,106620.0,1.6042307]
[1748166181273,0.13291468,106630.0,106620.0,1.6042307]
[1748166181686,0.10676752,106630.0,106620.0,1.6042307]
[1748166181888,0.11792472,106630.0,106620.0,1.6042307]
[1748166183940,0.02603451,106630.0,106620.0,1.6193307]
[1748166184314,0.02603451,106630.0,106620.0,1.6347307]
[1748166184726,0.01487731,106630.0,106620.0,1.6347307]
[1748166186185,0.01487731,106630.0,106620.0,1.9747307]
[1748166187450,0.006,106630.0,106620.0,1.9747307]
[1748166188115,0.006,106630.0,106620.0,1.9441907]
[1748166188323,0.09789021,106630.0,106620.0,1.9441907]
[1748166189576,0.006,106630.0,106620.0,2.98118022]
[1748166190215,0.006,106630.0,106620.0,2.4180217]
[1748166190387,0.003,106630.0,106620.0,2.98018022]
[1748166190928,0.05,106630.0,106620.0,3.06872578]
[1748166191333,0.052,106630.0,106620.0,3.06972578]
[1748166191613,0.052,106630.0,106620.0,2.50656726]
[1748166192257,0.052,106630.0,106620.0,3.06972578]
[1748166193951,0.049,106630.0,106620.0,3.06872578]
[1748166194408,0.05,106630.0,106620.0,3.06872578]
[1748166201756,0.462,106630.0,106620.0,3.06872578]
[1748166203699,0.462,106630.0,106620.0,3.10577698]
[1748166206196,0.462,106630.0,106620.0,2.47039759]
[1748166206780,0.413,106630.0,106620.0,2.48493844]
[1748166207520,0.412,106630.0,106620.0,2.48493844]
[1748166207734,0.049,106630.0,106620.0,1.38046787]
[1748166207937,0.049,106630.0,106620.0,2.00971203]
[1748166208193,0.03140465,106640.0,106620.0,1.86003203]
[1748166208393,0.03140465,106640.0,106620.0,1.56798103]
[1748166208751,0.412,106630.0,106620.0,1.24374103]
[1748166208968,0.412,106630.0,106620.0,1.98902403]
[1748166209155,0.412,106630.0,106620.0,1.98702403]
[1748166209579,0.12054556,106630.0,106620.0,0.81805131]
[1748166209779,0.12054556,106630.0,106620.0,0.96773131]
[1748166210211,0.12054556,106630.0,106620.0,0.96873131]
[1748166210372,0.12054556,106630.0,106620.0,0.96773131]
[1748166210579,0.12054556,106630.0,106620.0,1.30773131]
[1748166211090,0.12154556,106630.0,106620.0,0.98153131]
[1748166211292,0.12154556,106630.0,106620.0,1.30761131]
[1748166213176,0.13046205,106630.0,106620.0,1.30761131]
[1748166219321,0.09946205,106630.0,106620.0,1.30761131]
[1748166219532,0.00991649,106630.0,106620.0,1.30761131]
[1748166220919,0.001,106630.0,106620.0,1.30761131]
[1748166223012,0.001,106630.0,106620.0,1.77038331]
[1748166223219,0.001,106630.0,106620.0,1.57561931]
[1748166225066,0.05,106630.0,106620.0,2.25850239]
[1748166225235,0.001,106630.0,106620.0,2.25850239]
[1748166225435,0.001,106630.0,106620.0,2.27304324]
[1748166227162,0.05,106630.0,106620.0,2.27304324]
[1748166228077,0.05,106630.0,106620.0,2.27204324]
[1748166228263,0.049,106630.0,106620.0,2.27204324]
[1748166228446,0.049,106630.0,106620.0,2.27404324]
[1748166229172,0.049,106630.0,106620.0,2.26984324]
[1748166229598,0.049,106630.0,106620.0,2.27084324]
[1748166229802,0.049,106630.0,106620.0,2.30796285]
[1748166231486,0.41250465,106640.0,106630.0,0.0156]
[1748166231737,0.41250465,106640.0,106630.0,5.22361513]
[1748166232170,0.41250465,106640.0,106630.0,5.08361513]
[1748166232415,0.41250465,106640.0,106630.0,0.1764]
[1748166232622,0.44540465,106640.0,106630.0,0.32608]
[1748166232834,0.44640465,106640.0,106630.0,0.32608]
[1748166233046,0.44740465,106640.0,106630.0,0.32608]
[1748166233246,0.12495021,106640.0,106630.0,0.32608]
[1748166233477,0.12729486,106640.0,106630.0,0.32608]
[1748166233688,0.00450465,106640.0,106630.0,1.26723713]
[1748166233901,0.00450465,106640.0,106630.0,1.89672713]
[1748166234290,0.00350465,106640.0,106630.0,1.89672713]
[1748166234463,0.00550465,106640.0,106630.0,1.37690413]
[1748166234686,0.12875021,106640.0,106630.0,0.66708]
[1748166235052,0.13109486,106640.0,106630.0,0.66708]
[1748166235251,0.13109486,106640.0,106630.0,0.32708]
[1748166235460,0.13109486,106640.0,106630.0,0.1774]
[1748166235797,0.14000079,106640.0,106630.0,0.32708]
[1748166235999,0.14000079,106640.0,106630.0,0.1774]
[1748166236200,0.14000079,106640.0,106630.0,0.32708]
[1748166236585,0.19000079,106640.0,106630.0,0.32708]
[1748166236775,0.18765614,106640.0,106630.0,0.32708]
[1748166236978,0.20219699,106640.0,106630.0,0.32716]
[1748166237173,0.15219699,106640.0,106630.0,0.32716]
[1748166237401,0.20454164,106640.0,106630.0,0.32716]
[1748166237607,0.80235412,106640.0,106630.0,0.001]
[1748166237805,0.80235412,106640.0,106630.0,0.32716]
[1748166237806,0.20219699,106640.0,106630.0,0.32716]
[1748166238213,0.20219699,106640.0,106630.0,0.001]
[1748166238418,0.20219699,106640.0,106630.0,0.32716]
[1748166239640,0.21335419,106640.0,106630.0,0.17744]
[1748166242669,0.20219699,106640.0,106630.0,0.17744]
[1748166243095,0.13765614,106640.0,106630.0,0.17744]
[1748166243552,0.10395614,106640.0,106630.0,0.51744]
[1748166244374,0.01441058,106640.0,106630.0,1.09808732]
[1748166244793,0.01441058,106640.0,106630.0,3.61701332]
[1748166244985,0.00550465,106640.0,106630.0,3.61701332]
[1748166245633,0.00550465,106640.0,106630.0,3.053866]
[1748166246495,0.00550465,106640.0,106630.0,1.948277]
[1748166246709,0.00550465,106640.0,106630.0,1.577372]
[1748166246916,0.09505021,106640.0,106630.0,0.66692]
[1748166247992,0.12745021,106640.0,106630.0,0.341]
[1748166248208,0.40569597,106630.0,106620.0,0.63633131]
[1748166248421,0.0083,106590.0,106580.0,0.1762]
[1748166248654,0.10019021,106590.0,106580.0,0.1762]
[1748166248869,0.18713701,106590.0,106580.0,0.1762]
[1748166249079,0.0083,106580.0,106550.0,0.01589868]
[1748166249285,0.08954556,106570.0,106560.0,0.32588]
[1748166249487,0.08954556,106570.0,106540.0,0.33684]
[1748166249698,0.08954556,106570.0,106560.0,0.17616]
[1748166249699,0.08854556,106570.0,106560.0,0.17616]
[1748166250078,0.08854556,106570.0,106560.0,0.32588]
[1748166250282,0.001,106580.0,106560.0,0.996784]
[1748166250545,0.08954556,106580.0,106570.0,0.34]
[1748166251180,0.17355469,106610.0,106570.0,0.66801]
[1748166251181,0.00234465,106600.0,106570.0,0.66801]
[1748166251385,0.08573832,106590.0,106580.0,0.14972]
[1748166251604,0.08573832,106590.0,106580.0,0.32588]
[1748166252012,0.049,106570.0,106560.0,5.08094085]
[1748166252352,0.10075653,106610.0,106580.0,0.0164]
[1748166252581,0.09841188,106610.0,106590.0,0.99390122]
[1748166252739,0.00234465,106620.0,106600.0,0.33688]
[1748166252942,0.09189021,106620.0,106610.0,0.14976]
[1748166254054,0.09189021,106620.0,106610.0,0.15076]
[1748166254255,0.10089021,106620.0,106610.0,0.15176]
[1748166261901,0.10089021,106620.0,106610.0,0.49176]
[1748166262772,0.09854556,106620.0,106610.0,0.49176]
[1748166262979,0.009,106620.0,106610.0,2.405683]
[1748166263488,0.009,106620.0,106610.0,1.838097]
[1748166264399,0.005,106620.0,106610.0,1.837097]
[1748166264574,0.006,106620.0,106610.0,1.837097]
[1748166265344,0.001,106620.0,106610.0,1.836097]
[1748166265873,0.001,106620.0,106610.0,1.837097]
[1748166265874,0.005,106620.0,106610.0,1.837097]
[1748166266969,0.005,106620.0,106610.0,0.828392]
[1748166267114,0.005,106620.0,106610.0,0.781026]
[1748166267737,0.005,106620.0,106610.0,0.75854]
[1748166267941,0.08011384,106620.0,106610.0,0.341]
[1748166268133,0.17200405,106620.0,106610.0,0.66692]
[1748166269221,0.09689021,106620.0,106610.0,0.66692]
[1748166271039,0.09689021,106620.0,106610.0,0.1772]
[1748166271187,0.09689021,106620.0,106610.0,0.32692]
[1748166271402,0.09689021,106620.0,106610.0,0.001]
[1748166271600,0.09689021,106620.0,106610.0,0.32692]
[1748166275076,0.09454556,106620.0,106610.0,0.32692]
[1748166275493,0.09689021,106620.0,106610.0,0.32692]
[1748166276106,0.09689021,106620.0,106610.0,0.66692]
[1748166276735,0.09689021,106620.0,106610.0,0.66696]
[1748166277289,0.005,106620.0,106610.0,0.66696]
[1748166279513,0.005,106620.0,106610.0,0.69926]
[1748166280315,0.005,106620.0,106610.0,3.68155688]